bitfinex/quotes_ETHUSD_20240921
["timestamp","ask_amount","ask_price","bid_price","bid_amount"]
[1726926595709,148.27838182,2567.7,2567.6,50.97705565]
[1726926595907,151.60838182,2567.7,2567.6,50.97705565]
[1726926598308,151.60838182,2567.7,2567.6,41.43325565]
[1726926598514,154.93838182,2567.7,2567.6,41.43325565]
[1726926600324,154.93838182,2567.7,2567.6,41.34325565]
[1726926601717,158.26838182,2567.7,2567.6,41.34325565]
[1726926601920,157.87717452,2567.7,2567.6,52.17837134]
[1726926602614,149.961714,2567.7,2567.6,52.26837134]
[1726926603800,149.961714,2567.7,2567.6,50.26837134]
[1726926604001,153.291714,2567.7,2567.6,52.26837134]
[1726926606825,156.621714,2567.7,2567.6,52.26837134]
[1726926609003,156.621714,2567.7,2567.6,51.83344126]
[1726926609198,159.951714,2567.7,2567.6,51.83344126]
[1726926611897,163.281714,2567.7,2567.6,51.83344126]
[1726926613043,163.281714,2567.7,2567.6,52.26837134]
[1726926614525,166.611714,2567.7,2567.6,52.26837134]
[1726926617424,169.941714,2567.7,2567.6,52.26837134]
[1726926617625,162.02625348,2567.7,2567.6,52.26837134]
[1726926618637,161.95868464,2567.7,2567.6,52.26837134]
[1726926619954,165.28868464,2567.7,2567.6,52.26837134]
[1726926620338,161.61602044,2567.7,2567.6,52.26837134]
[1726926620550,152.06595444,2567.7,2567.6,52.26837134]
[1726926620742,152.06595444,2567.7,2567.6,52.65897134]
[1726926621958,101.56595444,2567.7,2567.6,52.65897134]
[1726926622361,104.89595444,2567.7,2567.6,52.65897134]
[1726926623453,96.98049392,2567.7,2567.6,52.65897134]
[1726926624861,100.31049392,2567.7,2567.6,52.65897134]
[1726926626465,92.3950334,2567.7,2567.6,52.65897134]
[1726926627468,95.7250334,2567.7,2567.6,52.65897134]
[1726926628057,95.7250334,2567.7,2567.6,54.21637534]
[1726926629167,6.66,2567.7,2567.6,54.21637534]
[1726926629389,5.83316501,2568.5,2568.4,15.4809]
[1726926629663,5.83316501,2568.5,2568.4,16.02790553]
[1726926630365,0.44934264,2568.5,2568.4,52.06090981]
[1726926630590,0.05012112,2568.5,2568.4,52.06090981]
[1726926630868,3.33,2569.0,2568.7,2.55]
[1726926631167,3.33,2569.0,2568.7,17.06090981]
[1726926631770,3.33,2569.0,2568.7,52.06090981]
[1726926632067,0.79836185,2568.8,2568.7,52.06090981]
[1726926632269,0.79836185,2568.8,2568.7,52.14338326]
[1726926633240,25.94469262,2568.9,2568.8,4.97000981]
[1726926633434,25.94469262,2568.9,2568.8,5.21169089]
[1726926634162,25.94469262,2568.9,2568.8,40.21169089]
[1726926634971,23.41305447,2568.9,2568.8,40.21169089]
[1726926635871,23.41305447,2568.9,2568.8,50.14259089]
[1726926636272,18.0292321,2568.9,2568.8,50.14259089]
[1726926636771,18.0292321,2568.9,2568.8,49.98259089]
[1726926637978,15.49759395,2568.9,2568.8,50.14259089]
[1726926638386,15.10410034,2568.9,2568.8,50.14259089]
[1726926639300,9.72027797,2568.9,2568.8,50.14259089]
[1726926639614,13.05027797,2568.9,2568.8,50.14259089]
[1726926640962,10.51863982,2568.9,2568.8,50.14259089]
[1726926641197,10.51863982,2568.9,2568.8,51.69938389]
[1726926641397,10.51863982,2568.9,2568.8,51.14938389]
[1726926642097,8.46481745,2568.9,2568.8,51.14938389]
[1726926642766,8.46481745,2568.9,2568.8,51.69938389]
[1726926643300,7.96883204,2568.9,2568.8,51.69938389]
[1726926643900,5.43719389,2568.9,2568.8,51.69938389]
[1726926644664,8.76719389,2568.9,2568.8,51.69938389]
[1726926645198,3.38337152,2568.9,2568.8,51.69938389]
[1726926646389,16.65214,2569.5,2569.4,2.55]
[1726926646589,16.65214,2569.5,2569.4,3.91300428]
[1726926646787,16.65214,2569.5,2569.4,3.99431635]
[1726926647302,16.93012247,2569.5,2569.4,48.88901635]
[1726926647507,16.93012247,2569.5,2569.4,49.27602188]
[1726926648202,0.0372862,2570.3,2570.1,5.32549498]
[1726926648416,0.0372862,2570.3,2570.2,5.55]
[1726926648615,0.0372862,2570.3,2570.2,6.05789204]
[1726926648898,0.0372862,2570.3,2570.2,41.05789204]
[1726926649104,9.7964,2570.5,2570.2,41.05789204]
[1726926649105,9.7836862,2570.5,2570.3,3.55]
[1726926649305,9.7836862,2570.5,2570.3,3.57]
[1726926649494,9.7836862,2570.5,2570.4,0.63100474]
[1726926649690,9.7836862,2570.5,2570.4,38.63100474]
[1726926650505,9.7836862,2570.5,2570.4,38.65100474]
[1726926652407,13.1136862,2570.5,2570.4,38.65100474]
[1726926652904,13.1136862,2570.5,2570.4,42.33300038]
[1726926653402,13.1136862,2570.5,2570.4,42.84918741]
[1726926654294,13.1136862,2570.5,2570.4,43.36600466]
[1726926654696,16.4436862,2570.5,2570.4,43.36600466]
[1726926657767,19.7736862,2570.5,2570.4,43.36600466]
[1726926658408,18.02286749,2570.5,2570.4,43.79267685]
[1726926660277,13.32,2570.5,2570.4,43.79267685]
[1726926660483,12.7922,2570.5,2570.4,43.79267685]
[1726926661520,21.8413,2570.5,2570.4,43.24267685]
[1726926662684,25.1713,2570.5,2570.4,43.79267685]
[1726926664918,16.1222,2570.5,2570.4,43.79267685]
[1726926665218,19.34676331,2570.5,2570.4,8.71167211]
[1726926665425,19.34676331,2570.5,2570.4,8.7897308]
[1726926666219,19.34676331,2570.5,2570.4,43.7397308]
[1726926666384,17.50057432,2570.5,2570.4,53.1965308]
[1726926666585,17.50057432,2570.5,2570.4,43.7397308]
[1726926667704,20.83057432,2570.5,2570.4,43.7397308]
[1726926667906,20.83057432,2570.5,2570.4,43.1897308]
[1726926669808,20.83057432,2570.5,2570.4,43.7397308]
[1726926670522,24.16057432,2570.5,2570.4,43.7397308]
[1726926671112,23.39128532,2570.5,2570.4,43.7397308]
[1726926672886,23.39128532,2570.5,2570.4,43.22291355]
[1726926673125,26.72128532,2570.5,2570.4,43.22291355]
[1726926675037,26.72128532,2570.5,2570.4,42.15672652]
[1726926675237,38.44251385,2570.5,2570.4,41.73005433]
[1726926675543,41.77251385,2570.5,2570.4,41.73005433]
[1726926676517,39.10038532,2570.5,2570.4,41.73005433]
[1726926676711,39.10038532,2570.5,2570.4,42.76305861]
[1726926677203,39.10038532,2570.5,2570.4,43.31305861]
[1726926678042,42.43038532,2570.5,2570.4,43.31305861]
[1726926680418,42.43038532,2570.5,2570.4,43.7397308]
[1726926680617,45.76038532,2570.5,2570.4,43.7397308]
[1726926680821,36.71128532,2570.5,2570.4,43.7397308]
[1726926681009,36.71128532,2570.5,2570.4,53.1965308]
[1726926682419,36.71128532,2570.5,2570.4,43.7397308]
[1726926683237,40.04128532,2570.5,2570.4,43.7397308]
[1726926684135,49.32368532,2570.5,2570.4,43.7397308]
[1726926684841,49.32368532,2570.5,2570.4,43.1897308]
[1726926685218,49.32368532,2570.5,2570.4,43.7397308]
[1726926685408,40.04128532,2570.5,2570.4,43.7397308]
[1726926685708,43.37128532,2570.5,2570.4,43.7397308]
[1726926688214,46.70128532,2570.5,2570.4,43.7397308]
[1726926690746,42.1158248,2570.5,2570.4,43.7397308]
[1726926693206,45.4458248,2570.5,2570.4,43.7397308]
[1726926695354,45.4458248,2570.5,2570.4,39.84624136]
[1726926695553,48.7758248,2570.5,2570.4,39.33005433]
[1726926696553,48.7758248,2570.5,2570.4,40.36305861]
[1726926696955,48.7758248,2570.5,2570.4,43.36305861]
[1726926697920,48.7758248,2570.5,2570.4,43.7897308]
[1726926698123,52.1058248,2570.5,2570.4,43.7897308]
[1726926699065,44.19036428,2570.5,2570.4,52.8153308]
[1726926700695,47.52036428,2570.5,2570.4,52.8153308]
[1726926701329,14.41,2571.1,2571.0,9.60537969]
[1726926701542,14.0101,2571.2,2571.1,11.6535581]
[1726926701844,7.37,2573.6,2571.1,14.94565374]
[1726926702156,0.737,2573.5,2572.9,2.0]
[1726926702337,10.03622846,2574.6,2572.9,2.0]
[1726926702667,3.68199564,2573.3,2572.6,2.0]
[1726926702833,3.68199564,2573.3,2573.2,35.0]
[1726926703160,3.68199564,2573.3,2572.6,2.0]
[1726926703363,3.68199564,2573.3,2573.2,0.07152154]
[1726926703674,4.0501952,2573.3,2572.7,0.06913749]
[1726926703966,4.6001952,2573.3,2573.2,25.0]
[1726926704264,2.8233,2573.2,2572.8,0.06913749]
[1726926704490,3.68199564,2572.9,2572.5,2.0]
[1726926704773,0.55,2572.6,2571.6,2.0]
[1726926704939,3.68199564,2572.5,2571.6,2.0]
[1726926705137,2.8233,2572.6,2571.6,2.0]
[1726926705574,2.8233,2572.6,2572.5,35.0]
[1726926705771,10.2018,2572.6,2572.5,38.0]
[1726926705945,10.52644996,2572.6,2572.5,38.0]
[1726926709979,8.25314996,2572.6,2572.5,38.0]
[1726926710180,7.9285,2572.6,2572.5,38.0]
[1726926710479,7.9285,2572.6,2572.5,38.54145674]
[1726926711137,7.9285,2572.6,2572.5,38.60803361]
[1726926712996,7.9285,2572.6,2572.5,38.06657687]
[1726926714606,11.2585,2572.6,2572.5,38.06657687]
[1726926714776,12.42666996,2572.6,2572.5,38.60803361]
[1726926716405,12.42666996,2572.6,2572.5,39.14979611]
[1726926716559,3.33,2572.6,2572.5,41.14979611]
[1726926717179,6.66,2572.6,2572.5,41.14979611]
[1726926717776,6.66,2572.6,2572.5,41.59563497]
[1726926717966,6.66,2572.6,2572.5,42.38563497]
[1726926718368,6.66,2572.6,2572.5,51.57023497]
[1726926718570,3.33,2573.3,2572.5,51.57023497]
[1726926718571,3.33,2573.3,2573.2,5.0]
[1726926718775,3.33,2573.3,2573.2,2.54145674]
[1726926718999,3.33,2573.3,2573.2,6.1493358]
[1726926719203,3.33,2573.3,2573.2,41.1493358]
[1726926719368,3.33,2573.3,2573.2,41.59517466]
[1726926719905,3.33,2573.3,2573.2,41.67517466]
[1726926720210,6.66,2573.3,2573.2,41.59517466]
[1726926720770,6.66,2573.3,2573.2,42.14517466]
[1726926720965,0.0109812,2573.7,2573.6,2.0]
[1726926721172,9.9867,2575.1,2574.0,14.7346]
[1726926721371,2.5462142,2574.1,2574.0,16.30449143]
[1726926721691,2.5462142,2574.1,2574.0,51.30449143]
[1726926721899,2.5462142,2574.1,2574.0,51.3704738]
[1726926722269,2.5462142,2574.1,2574.0,51.4504738]
[1726926722715,2.1512402,2574.1,2574.0,51.4504738]
[1726926723005,0.97415526,2574.1,2574.0,51.4504738]
[1726926723247,0.0409452,2575.3,2574.4,2.0]
[1726926723374,0.0409452,2575.3,2574.4,5.63]
[1726926723708,0.0409452,2575.3,2574.4,16.29954276]
[1726926723871,0.0409452,2575.3,2574.4,51.36552513]
[1726926725513,9.378,2575.0,2574.4,41.15772513]
[1726926726177,9.378,2575.0,2574.4,37.14598237]
[1726926726804,9.378,2575.0,2574.4,35.14598237]
[1726926727108,9.4189452,2574.5,2574.4,35.14598237]
[1726926727270,10.36083972,2574.5,2574.4,35.14598237]
[1726926727473,13.69083972,2574.5,2574.4,35.14598237]
[1726926727672,13.69083972,2574.5,2574.4,35.06598237]
[1726926728203,12.7489452,2574.5,2574.4,37.06598237]
[1726926728591,12.7489452,2574.5,2574.4,35.06598237]
[1726926728990,12.7489452,2574.5,2574.4,38.06598237]
[1726926729913,12.7489452,2574.5,2574.4,35.06598237]
[1726926730708,16.0789452,2574.5,2574.4,35.06598237]
[1726926730952,17.68683972,2574.5,2574.4,35.06598237]
[1726926731327,16.0789452,2574.5,2574.4,40.61438627]
[1726926731727,6.7009452,2574.5,2574.4,40.61438627]
[1726926731951,6.7009452,2574.5,2574.4,41.09473317]
[1726926733448,10.0309452,2574.5,2574.4,41.09473317]
[1726926733830,10.0309452,2574.5,2574.4,40.61438627]
[1726926734443,10.0309452,2574.5,2574.4,40.91438627]
[1726926735827,13.3609452,2574.5,2574.4,40.61438627]
[1726926738290,16.6909452,2574.5,2574.4,40.61438627]
[1726926740967,20.0209452,2574.5,2574.4,40.61438627]
[1726926743287,23.3509452,2574.5,2574.4,40.61438627]
[1726926743450,23.3509452,2574.5,2574.4,51.50553317]
[1726926743849,3.97660705,2574.5,2574.4,51.93970536]
[1726926744048,0.0409452,2575.3,2575.2,15.3208]
[1726926744278,0.0409452,2575.3,2575.2,16.78372299]
[1726926744449,0.0008,2576.3,2576.1,15.3208]
[1726926744655,0.0409452,2577.8,2576.9,2.0]
[1726926744877,9.4156,2577.2,2576.9,2.0]
[1726926745170,9.4156,2577.2,2576.6,2.0]
[1726926745378,9.4156,2577.2,2576.9,38.0]
[1726926745677,0.94688416,2577.4,2576.9,38.05949198]
[1726926745989,0.94688416,2577.4,2576.9,0.05949198]
[1726926745990,9.4156,2577.3,2576.9,0.05949198]
[1726926746141,9.4156,2577.1,2576.9,0.05949198]
[1726926746446,9.4156,2576.9,2575.7,2.0]
[1726926746654,9.4156,2576.6,2575.3,2.0]
[1726926746857,9.4156,2576.6,2575.8,35.05750892]
[1726926747176,9.4156,2576.6,2575.8,35.0]
[1726926747479,0.94156,2576.5,2575.9,0.05552585]
[1726926747852,0.94156,2576.5,2576.4,35.0]
[1726926748237,0.94156,2576.5,2576.4,35.05552585]
[1726926749056,1.49156,2576.5,2576.4,35.05552585]
[1726926749254,0.94156,2576.5,2576.4,35.05552585]
[1726926749682,0.94156,2576.5,2576.4,38.05552585]
[1726926750283,1.49156,2576.5,2576.4,38.05552585]
[1726926750463,10.90716,2576.5,2576.4,38.05552585]
[1726926750800,10.90716,2576.5,2576.4,35.05552585]
[1726926750998,15.42549502,2576.5,2576.4,35.05552585]
[1726926751785,9.3513,2576.4,2575.4,2.0]
[1726926751989,9.3513,2576.2,2575.3,0.48532797]
[1726926752192,13.86963502,2576.0,2575.5,35.0]
[1726926752459,9.3513,2575.9,2575.5,35.0]
[1726926753360,4.51833502,2575.6,2575.5,35.0]
[1726926753563,14.87146852,2575.6,2575.5,35.0]
[1726926754269,0.55,2575.5,2575.1,0.0099861]
[1726926754471,4.51833502,2575.3,2575.1,0.0099861]
[1726926754674,9.9013,2575.5,2575.1,0.0099861]
[1726926755302,9.9013,2575.5,2575.2,35.0]
[1726926755598,1.48714685,2575.4,2575.2,35.0]
[1726926757205,9.3513,2575.5,2575.3,3.0]
[1726926757502,9.3513,2575.5,2575.1,5.49531407]
[1726926757703,9.3513,2575.5,2575.2,0.48532797]
[1726926757866,9.3513,2575.5,2575.4,35.0]
[1726926758197,0.4518335,2575.6,2575.5,3.0]
[1726926758403,9.3513,2575.9,2575.5,3.0]
[1726926759504,9.3513,2575.9,2575.6,0.05014584]
[1726926760364,9.3513,2576.2,2575.6,0.53547381]
[1726926760564,9.3513,2576.2,2575.7,0.48532797]
[1726926760838,9.3513,2576.2,2575.8,0.05034021]
[1726926761105,1.0435586,2576.1,2575.8,0.05034021]
[1726926761284,1.0435586,2576.1,2575.8,0.53566818]
[1726926761488,1.084286,2576.3,2575.8,0.53566818]
[1726926761489,1.084286,2576.3,2576.0,3.0]
[1726926761873,1.084286,2576.3,2576.1,0.0502716]
[1726926762071,1.084286,2576.3,2576.2,38.0]
[1726926762277,6.66,2576.5,2576.3,5.0]
[1726926762497,6.66,2576.5,2576.3,3.0]
[1726926762702,6.66,2576.5,2576.4,0.05003155]
[1726926763076,6.66,2576.5,2576.4,38.0]
[1726926763310,7.326,2576.5,2576.4,38.0]
[1726926763481,7.326,2576.5,2576.4,38.04991725]
[1726926765922,7.326,2576.5,2576.4,35.04991725]
[1726926767486,6.66,2576.5,2576.4,35.04991725]
[1726926769521,6.66,2576.5,2576.4,40.04991725]
[1726926769722,6.66,2576.5,2576.4,38.04991725]
[1726926771591,15.7446,2576.5,2576.4,35.04991725]
[1726926773120,9.6346,2576.3,2575.0,0.21931449]
[1726926773326,9.0846,2575.9,2575.0,0.21931449]
[1726926773622,9.0846,2575.9,2575.1,0.49531407]
[1726926773797,0.96346,2575.8,2575.1,0.49531407]
[1726926773993,0.96346,2575.8,2575.2,35.0]
[1726926774390,0.96346,2575.8,2575.3,3.0]
[1726926774802,0.96346,2575.8,2575.1,0.49531407]
[1726926775498,9.0846,2575.7,2575.1,0.0099861]
[1726926780733,9.0846,2575.7,2575.2,0.04169395]
[1726926781941,4.51877793,2575.8,2575.2,0.04169395]
[1726926781942,4.51877793,2575.5,2575.2,0.04169395]
[1726926782239,10.0046,2575.4,2575.1,0.0099861]
[1726926782417,9.4546,2575.1,2573.6,2.0]
[1726926782745,9.4546,2574.7,2573.6,2.0]
[1726926783843,9.4546,2574.7,2574.2,0.03660219]
[1726926784438,0.55,2574.6,2574.2,0.03660219]
[1726926784735,0.55,2574.6,2573.2,9.2844839]
[1726926784736,0.55,2574.2,2573.2,0.0463839]
[1726926784946,9.4546,2574.1,2573.2,0.0463839]
[1726926785149,9.4546,2574.1,2573.3,0.49452281]
[1726926785506,9.4546,2574.1,2573.3,0.46012419]
[1726926786429,9.4546,2574.1,2573.4,0.03412399]
[1726926786631,0.94546,2574.0,2573.4,0.03412399]
[1726926786938,9.4546,2574.1,2573.5,0.46012419]
[1726926787157,9.4546,2574.1,2573.4,0.03412399]
[1726926787328,9.4546,2574.1,2573.2,3.0463839]
[1726926787530,9.4546,2574.1,2573.5,0.03412399]
[1726926787742,0.55,2574.0,2573.2,0.0463839]
[1726926787925,9.4546,2573.8,2573.6,0.03412399]
[1726926788119,9.4546,2573.8,2573.2,0.0463839]
[1726926788357,9.4546,2573.8,2573.7,0.03412399]
[1726926788358,10.0046,2573.8,2573.7,0.03412399]
[1726926788559,9.4546,2573.8,2573.2,0.0463839]
[1726926788767,0.45187779,2574.7,2573.2,0.0463839]
[1726926788768,9.4546,2574.0,2573.2,2.50650809]
[1726926788962,10.40006,2574.0,2573.3,0.49424818]
[1726926789324,10.40006,2574.0,2573.3,0.03412399]
[1726926789656,10.40006,2574.0,2573.4,0.03427666]
[1726926790050,9.4546,2573.8,2573.2,0.0463839]
[1726926790355,9.4546,2573.8,2573.5,0.03427666]
[1726926790535,1.00046,2573.7,2573.2,0.0463839]
[1726926790968,0.55,2573.6,2573.3,0.03427666]
[1726926791149,9.4546,2573.5,2573.3,0.03427666]
[1726926791340,9.4546,2573.5,2573.2,0.0463839]
[1726926791659,9.4546,2573.5,2573.3,0.03427666]
[1726926791859,1.00046,2573.4,2573.3,0.03427666]
[1726926792036,1.00046,2573.4,2573.2,0.0463839]
[1726926792237,9.6086,2573.3,2573.2,0.0463839]
[1726926796565,0.55,2573.2,2572.2,0.0463839]
[1726926796771,9.6086,2572.8,2572.2,0.0463839]
[1726926796973,4.51877793,2572.9,2572.2,0.0463839]
[1726926796974,9.0586,2572.5,2572.2,0.0463839]
[1726926797134,0.55,2572.4,2572.2,0.0463839]
[1726926797476,9.0586,2572.5,2572.2,0.0463839]
[1726926797640,9.0586,2572.5,2572.2,0.50650809]
[1726926798168,9.0586,2572.5,2572.3,0.03445531]
[1726926798480,0.90586,2572.4,2572.2,0.0480756]
[1726926798969,1.45586,2572.4,2572.3,0.03452409]
[1726926799493,0.90586,2572.4,2572.2,0.0480756]
[1726926799991,0.90586,2572.4,2572.3,0.03452409]
[1726926800472,9.0586,2572.8,2572.3,0.49462918]
[1726926802276,9.0586,2572.8,2572.3,0.03450499]
[1726926802776,9.0586,2572.8,2572.2,0.0480756]
[1726926802935,9.0586,2572.8,2572.4,0.03450499]
[1726926803138,9.5005,2573.1,2572.2,0.0480756]
[1726926803365,10.2375,2573.1,2572.5,0.03450499]
[1726926803565,10.2375,2573.1,2572.4,0.46012419]
[1726926803772,10.2375,2573.1,2572.6,0.03441327]
[1726926804065,10.2375,2573.1,2572.7,0.03437507]
[1726926804274,1.76075,2573.0,2572.7,0.03437507]
[1726926804474,1.76075,2573.0,2572.4,0.46012419]
[1726926804649,1.76075,2573.0,2572.8,0.03437507]
[1726926804844,0.55,2572.9,2572.2,0.0480756]
[1726926805375,1.76075,2573.0,2572.3,0.49445723]
[1726926805579,0.50463943,2572.9,2572.8,35.0]
[1726926805738,10.7,2573.8,2573.0,3.0]
[1726926805945,3.33,2573.8,2573.2,2.0]
[1726926806151,3.33,2573.8,2573.3,9.85602419]
[1726926806340,3.33,2573.8,2573.7,38.0]
[1726926806663,3.33,2573.8,2573.7,38.0343445]
[1726926808083,3.33,2573.8,2573.7,47.4302445]
[1726926808470,3.33,2573.8,2573.7,47.3959]
[1726926809082,3.33,2573.8,2573.7,47.85602419]
[1726926809642,3.19017984,2573.8,2573.7,49.85602419]
[1726926809841,3.19017984,2573.8,2573.7,50.89778973]
[1726926810068,3.19017984,2573.8,2573.7,50.34778973]
[1726926810679,3.19017984,2573.8,2573.7,50.51778973]
[1726926810989,3.19017984,2573.8,2573.7,51.06778973]
[1726926811872,3.19017984,2573.8,2573.7,50.51778973]
[1726926815686,2.7743099,2573.8,2573.7,50.51778973]
[1726926817082,2.7743099,2573.8,2573.7,51.06778973]
[1726926819494,2.7743099,2573.8,2573.7,50.89778973]
[1726926820154,6.1043099,2573.8,2573.7,50.89778973]
[1726926821688,6.1043099,2573.8,2573.7,50.34778973]
[1726926821854,6.1043099,2573.8,2573.7,46.3959]
[1726926822050,6.1043099,2573.8,2573.7,35.0]
[1726926822874,9.4343099,2573.8,2573.7,35.0]
[1726926823497,10.71074089,2573.8,2573.7,35.0]
[1726926823681,9.4343099,2573.8,2573.7,35.0]
[1726926825068,9.4343099,2573.8,2573.7,40.52864825]
[1726926825258,9.4343099,2573.8,2573.7,41.02041379]
[1726926825461,12.7643099,2573.8,2573.7,41.02041379]
[1726926826387,12.7643099,2573.8,2573.7,40.0]
[1726926827798,16.0943099,2573.8,2573.7,40.0]
[1726926828418,16.0943099,2573.8,2573.7,41.02041379]
[1726926830011,16.0943099,2573.8,2573.7,55.53259172]
[1726926830162,18.91752397,2573.8,2573.7,55.06217793]
[1726926830368,18.91752397,2573.8,2573.7,54.51217793]
[1726926831983,18.91752397,2573.8,2573.7,40.0]
[1726926832196,21.14227637,2573.8,2573.7,40.0]
[1726926832373,18.91752397,2573.8,2573.7,40.0]
[1726926833086,22.24752397,2573.8,2573.7,38.0]
[1726926834088,31.49762397,2573.8,2573.7,38.0]
[1726926835096,31.49762397,2573.8,2573.7,35.0]
[1726926835608,34.82762397,2573.8,2573.7,35.0]
[1726926835811,39.19338637,2573.8,2573.7,35.0]
[1726926838509,42.52338637,2573.8,2573.7,35.0]
[1726926840713,41.97338637,2573.8,2573.7,35.0]
[1726926841083,45.30338637,2573.8,2573.7,35.0]
[1726926841299,45.85338637,2573.8,2573.7,35.0]
[1726926843478,45.30338637,2573.8,2573.7,35.0]
[1726926843897,44.81762397,2573.8,2573.7,38.0]
[1726926844101,35.56752397,2573.8,2573.7,38.0]
[1726926845713,45.08822397,2573.8,2573.7,38.0]
[1726926846176,45.08822397,2573.8,2573.7,35.0]
[1726926846518,48.41822397,2573.8,2573.7,35.0]
[1726926846675,52.44901925,2573.8,2573.7,35.0]
[1726926849212,55.77901925,2573.8,2573.7,35.0]
[1726926849412,56.32901925,2573.8,2573.7,35.0]
[1726926851832,59.65901925,2573.8,2573.7,35.0]
[1726926854316,62.98901925,2573.8,2573.7,35.0]
[1726926855232,4.03079528,2573.7,2572.7,0.06764596]
[1726926855401,0.55,2573.3,2572.7,0.06764596]
[1726926855604,0.55,2573.3,2572.3,9.222]
[1726926855906,0.55,2573.3,2572.8,35.0]
[1726926856113,9.5207,2573.4,2572.8,35.0]
[1726926856308,13.55149528,2573.7,2572.8,9.222]
[1726926856501,4.03079528,2573.6,2572.8,9.222]
[1726926856909,4.03079528,2573.6,2573.3,35.0]
[1726926857617,4.03079528,2573.6,2573.4,3.0]
[1726926857820,52.91831925,2573.8,2573.4,3.0]
[1726926858334,48.88752397,2573.8,2573.4,12.222]
[1726926858798,48.88752397,2573.8,2573.7,38.0]
[1726926860126,52.21752397,2573.8,2573.7,47.222]
[1726926862766,55.54752397,2573.8,2573.7,47.222]
[1726926865257,58.85752397,2573.8,2573.7,47.222]
[1726926867757,62.18752397,2573.8,2573.7,47.222]
[1726926869255,62.18752397,2573.8,2573.7,38.0]
[1726926869448,66.21831925,2573.8,2573.7,38.0]
[1726926869648,66.21831925,2573.8,2573.7,35.0]
[1726926870362,69.54831925,2573.8,2573.7,35.0]
[1726926871075,69.54831925,2573.8,2573.7,38.0]
[1726926872950,72.87831925,2573.8,2573.7,38.0]
[1726926874236,68.84752397,2573.8,2573.7,38.0]
[1726926875375,72.17752397,2573.8,2573.7,38.0]
[1726926878082,75.50752397,2573.8,2573.7,38.0]
[1726926879284,75.50752397,2573.8,2573.7,47.6354]
[1726926879495,75.50752397,2573.8,2573.7,49.6354]
[1726926879978,75.50752397,2573.8,2573.7,53.3088754]
[1726926880354,78.83752397,2573.8,2573.7,53.3088754]
[1726926881566,78.83752397,2573.8,2573.7,51.3088754]
[1726926881990,78.83752397,2573.8,2573.7,53.3088754]
[1726926883794,82.16752397,2573.8,2573.7,53.3088754]
[1726926886299,85.49752397,2573.8,2573.7,53.3088754]
[1726926888164,89.52831925,2573.8,2573.7,38.0]
[1726926888471,89.52831925,2573.8,2573.7,35.0]
[1726926888677,0.55,2573.7,2573.2,0.06762245]
[1726926888862,9.8861,2573.6,2573.3,0.13]
[1726926889063,1.04361,2573.5,2573.3,0.13]
[1726926889285,1.04361,2573.5,2572.9,0.0195779]
[1726926889667,1.04361,2573.5,2573.0,35.0]
[1726926890067,1.04361,2573.5,2573.1,3.0]
[1726926890279,1.04361,2573.5,2572.9,0.0195779]
[1726926890574,1.092971,2573.4,2572.9,0.0195779]
[1726926890780,1.092971,2573.4,2573.2,35.0]
[1726926891174,9.8861,2573.3,2573.2,35.0]
[1726926893800,13.2161,2573.3,2573.2,35.0]
[1726926894015,13.7661,2573.3,2573.2,34.0]
[1726926894323,15.5300071,2573.3,2573.2,34.0]
[1726926895002,15.5923071,2573.3,2573.2,34.0]
[1726926896387,18.3723071,2573.3,2573.2,34.0]
[1726926896865,6.66,2573.3,2573.2,37.0]
[1726926898602,6.66,2573.3,2572.9,3.0195779]
[1726926898909,9.99,2573.3,2572.9,3.0195779]
[1726926899075,9.99,2573.3,2573.1,3.0]
[1726926899474,9.99,2573.3,2573.2,9.131]
[1726926899799,9.99,2573.3,2573.2,12.131]
[1726926899990,9.99,2573.3,2573.2,47.9655433]
[1726926900320,9.99,2573.3,2573.2,47.59193221]
[1726926900537,9.99,2573.3,2573.2,47.131]
[1726926901294,13.32,2573.3,2573.2,47.131]
[1726926901626,13.32,2573.3,2573.2,50.3349433]
[1726926903232,13.32,2573.3,2573.2,49.96133221]
[1726926904330,13.32,2573.3,2573.2,49.5004]
[1726926904646,13.32,2573.3,2573.2,38.0]
[1726926904647,16.65,2573.3,2573.2,38.0]
[1726926907034,19.98,2573.3,2573.2,38.0]
[1726926907238,22.311,2573.3,2573.2,38.0]
[1726926907664,19.98,2573.3,2573.2,47.96133221]
[1726926908339,19.98,2573.3,2573.2,38.0]
[1726926909046,19.98,2573.3,2573.2,35.0]
[1726926909527,29.3431,2573.3,2573.2,35.0]
[1726926909719,23.31,2573.3,2573.2,35.0]
[1726926910037,25.974,2573.3,2573.2,35.0]
[1726926912550,29.304,2573.3,2573.2,35.0]
[1726926913112,26.64,2573.3,2573.2,44.5004]
[1726926914415,26.64,2573.3,2573.2,35.0]
[1726926915108,29.97,2573.3,2573.2,35.0]
[1726926916732,29.97,2573.3,2573.2,35.46093221]
[1726926917727,33.3,2573.3,2573.2,35.0]
[1726926917936,36.963,2573.3,2573.2,35.0]
[1726926920110,40.293,2573.3,2573.2,35.0]
[1726926922742,43.623,2573.3,2573.2,35.0]
[1726926923460,43.623,2573.3,2573.2,38.0]
[1726926925362,46.953,2573.3,2573.2,38.0]
[1726926926148,43.29,2573.3,2573.2,38.0]
[1726926926555,43.29,2573.3,2573.2,47.2535]
[1726926927734,46.62,2573.3,2573.2,47.2535]
[1726926928163,46.62,2573.3,2573.2,38.0]
[1726926930237,49.95,2573.3,2573.2,38.0]
[1726926930437,53.98079528,2573.3,2573.2,38.0]
[1726926931736,53.98079528,2573.3,2573.2,38.09513172]
[1726926932857,57.31079528,2573.3,2573.2,38.09513172]
[1726926935526,60.64079528,2573.3,2573.2,38.09513172]
[1726926935927,70.88159528,2573.3,2573.2,35.09513172]
[1726926938297,74.21159528,2573.3,2573.2,35.09513172]
[1726926938803,74.21159528,2573.3,2573.2,0.09513172]
[1726926939157,10.2408,2573.2,2572.9,0.0195779]
[1726926939353,10.2408,2573.2,2573.0,35.0]
[1726926939354,4.58079528,2573.1,2573.0,35.0]
[1726926939556,14.27159528,2573.1,2573.0,35.09410158]